Cogmind - Beta 11 @@@ ROGUE MODE // 2022.03.28 @ 04:40:42 Player: woegarden Result: Destroyed by 8R-AWN with 8R-AWN's Boregun Performance ------------- Evolutions (1) 500 Regions Visited (5) 1000 Robots Destroyed (10) 50 Value Destroyed (156) 156 Prototype IDs (24) 480 Alien Tech Used (0) 0 Bonus (300) 300 TOTAL SCORE: 2486 Bonus ------- Aligned with FarCom 300 Cogmind --------- Core Integrity 0/400 Matter 260/300 Energy 280/280 System Corruption 0% Temperature Cool (0) Movement Core (300) Ox5 Location -9/Exiles Parts ------- > --- POWER (1) -------- Cooled Ion Engine > --- PROPULSION (4) --- (None) > --- UTILITY (2) ------ Light Armor Plating > --- WEAPON (2) ------- Heavy Flail Heavy Flail > --- INVENTORY (5) ---- Improved Terrain Scanner Chronowheel Peak State ------------ > --- POWER ------------ Cooled Ion Engine > --- PROPULSION ------- Wheel Compact Wheel Compact Wheel Compact Wheel > --- UTILITY ---------- Small Storage Unit Seismic Detector > --- WEAPON ----------- Heavy Flail Heavy Flail > --- INVENTORY -------- Cooled Ion Engine Wheel Wheel Improved Terrain Scanner Light Armor Plating Chronowheel Heavy Flail Heavy Flail [Rating: 17] Favorites ----------- Power Cooled Ion Engine Engine Cooled Ion Engine Propulsion Compact Wheel Leg Aluminum Leg Wheel Compact Wheel Utility Small Storage Unit Device Seismic Detector Storage Small Storage Unit Protection Light Armor Plating Weapon Heavy Flail Energy Gun Small Laser Impact Weapon Heavy Flail Build | -11 -10 -10 -9 -9 -9 ------- Run | Scr Mat Min Mat Min Exi Slots Evolved 2 | . . . 2 . . Power . | . . . . . . Propulsion 2 | . . . 2 . . Utility . | . . . . . . Weapon . | . . . . . . Parts Attached 14 | 3 . . 5 . 6 Power 2 | . . . 1 . 1 Engine 2 | . . . 1 . 1 Core . | . . . . . . Reactor . | . . . . . . Propulsion 6 | 2 . . 2 . 2 Treads . | . . . . . . Leg . | . . . . . . Wheel 6 | 2 . . 2 . 2 Hover . | . . . . . . Flight . | . . . . . . Utility 2 | 1 . . . . 1 Device 1 | 1 . . . . . Storage . | . . . . . . Processor . | . . . . . . Hackware . | . . . . . . Protection 1 | . . . . . 1 Artifact . | . . . . . . Weapon 4 | . . . 2 . 2 Energy Gun . | . . . . . . Energy Cannon . | . . . . . . Ballistic Gun . | . . . . . . Ballistic Cannon . | . . . . . . Launcher . | . . . . . . Special Weapon . | . . . . . . Impact Weapon 4 | . . . 2 . 2 Slashing Weapon . | . . . . . . Piercing Weapon . | . . . . . . Special Melee Weapon . | . . . . . . Unidentified Prototypes 1 | . . . 1 . . Parts Lost 11 | . . . . . 11 Power 1 | . . . . . 1 Propulsion 6 | . . . . . 6 Utility 2 | . . . . . 2 Weapon 2 | . . . . . 2 Highest Loss Streak 11 | . . . . . 11 To Critical Strikes 6 | . . . . . 6 Average Slot Usage (%) 89 | . 100 100 98 100 84 Engine 11 | . 14 14 11 11 10 Wheel 34 | . 28 28 44 44 34 Device 9 | . 14 14 11 11 7 Storage 10 | . 14 14 11 11 9 Energy Gun 6 | . 28 28 3 . . Impact Weapon 16 | . . . 17 22 21 Naked Turns . | . . . . . . Heaviest Build 20 | 12 12 12 20 20 20 Greatest Support 58 | 32 32 32 58 58 58 Greatest Overweight (x) 3 | . . . . . 3 Average Overweight (x) . | . . . . . . Largest Inventory Capacity 8 | 8 8 8 8 8 8 Average Capacity 7 | 8 8 8 8 8 7 Most Carried 8 | 8 8 8 8 8 8 Average Carried 7 | 5 8 8 7 8 7 Final Capacity 8 | 8 8 8 8 8 5 Final Carried 8 | 8 8 8 8 8 2 Class Distribution -------------------- 100% | Mutant Dominant Class ---------------- Mutant | -10/Materials Mutant | -10/Mines Mutant | -9/Materials Mutant | -9/Mines Mutant | -9/Exiles Resources | -11 -10 -10 -9 -9 -9 ----------- Run | Scr Mat Min Mat Min Exi Matter Collected 280 | 230 . . 50 . . Remotely . | . . . . . . Salvage Created 452 | 188 . 46 145 . 73 Parts 26 | 16 . 4 6 . . Haulers Intercepted 1 | . . . 1 . . Recyclers Shooed . | . . . . . . Parts Field Recycled . | . . . . . . Retrieved Matter . | . . . . . . Parts Self-Destructed . | . . . . . . Prevented . | . . . . . . Kills | -11 -10 -10 -9 -9 -9 ------- Run | Scr Mat Min Mat Min Exi Combat Hostiles Destroyed 9 | . . 1 2 . 6 Melee 6 | . . . 1 . 5 Guns 1 | . . 1 . . . Cannons 1 | . . . . . 1 Classes Destroyed 6 | 2 . 1 2 . 1 Tunneler 5 | 5 . . . . . Hauler 1 | . . . 1 . . Recycler 1 | 1 . . . . . Grunt 2 | . . 1 1 . . Sentry 1 | . . . 1 . . Assembled 6 | . . . . . 6 Best Kill Streak 6 | 4 . 1 2 . 6 Combat Bots Only 6 | . . 1 1 . 6 Max Kills in Single Turn 1 | 1 . 1 1 . 1 Gunslinging . | . . . . . . Exploded . | . . . . . . Melee 1 | . . . 1 . 1 Uniques/NPCs Destroyed . | . . . . . . Combat | -11 -10 -10 -9 -9 -9 -------- Run | Scr Mat Min Mat Min Exi Damage Taken 1393 | . . 95 85 . 1213 Core 437 | . . 15 49 . 373 Absorbed by Shields . | . . . . . . Core Remaining (%) 97 | 100 . 94 . . . Volleys Fired 19 | 14 . 5 . . . Largest 2 | 2 . 2 . . . Hottest 80 | 80 . 80 . . . Shots Fired 38 | 28 . 10 . . . Gun 38 | 28 . 10 . . . Cannon . | . . . . . . Launcher . | . . . . . . Special . | . . . . . . Kinetic . | . . . . . . Thermal 19 | 14 . 5 . . . Explosive . | . . . . . . Electromagnetic 19 | 14 . 5 . . . Robot Hit Streak 4 | 4 . 3 . . . Robot Miss Streak 2 | 2 . 2 . . . Penetration Max . | . . . . . . Secondary Targets . | . . . . . . Shots Hit Robots 56 | 13 . 5 4 . 34 Core Hits 16 | 7 . 2 1 . 6 Critical Kills . | . . . . . . Critical Parts Destroyed 2 | . . . . . 2 Critical Strikes 2 | . . . . . 2 Smash 2 | . . . . . 2 Melee Attacks 61 | . . . 5 . 56 Impact 61 | . . . 5 . 56 Slashing . | . . . . . . Piercing . | . . . . . . Sneak Attacks 1 | . . . 1 . . Combat Hostiles . | . . . . . . Follow-up Attacks 4 | . . . . . 4 Damage Inflicted 2323 | 162 . 63 214 . 1884 Guns 224 | 162 . 62 . . . Cannons . | . . . . . . Explosions . | . . . . . . Melee 2098 | . . . 214 . 1884 Ramming 1 | . . 1 . . . Kinetic . | . . . . . . Thermal 76 | 44 . 32 . . . Explosive . | . . . . . . Electromagnetic 148 | 118 . 30 . . . Impact 2098 | . . . 214 . 1884 Slashing . | . . . . . . Piercing . | . . . . . . Highest Corruption . | . . . . . . Average Corruption . | . . . . . . Corruption Purged . | . . . . . . Corruption Blocked . | . . . . . . Overload Shots . | . . . . . . Overflow Damage 381 | . . . 82 . 299 Projectiles . | . . . . . . Explosions . | . . . . . . Melee 381 | . . . 82 . 299 Knockbacks 5 | . . . . . 5 Impact 4 | . . . . . 4 Kinetic . | . . . . . . Secondary 1 | . . . . . 1 Self-Inflicted Damage . | . . . . . . Shots . | . . . . . . Rammed 1 | . . 1 . . . Targets Rammed 1 | . . 1 . . . Kicked . | . . . . . . Crushed . | . . . . . . Highest Temperature 135 | 126 . 135 . . . Average Temperature 50 | 44 . 68 . . . Received Heat Transfer 173 | . . 54 39 . 80 Siege Activations . | . . . . . . Robots Corrupted . | . . . . . . Combat Hostiles . | . . . . . . Parts Fried . | . . . . . . Impact Corruptions 14 | . . . 3 . 11 Robots Melted . | . . . . . . Combat Hostiles . | . . . . . . Parts Melted . | . . . . . . Heat Transferred 175 | 100 . 75 . . . Parts Sabotaged . | . . . . . . Parts Stolen . | . . . . . . Parts Stripped . | . . . . . . Power Chain Reactions . | . . . . . . Missiles Intercepted . | . . . . . . Alert | -11 -10 -10 -9 -9 -9 ------- Run | Scr Mat Min Mat Min Exi Peak Influence 84 | 30 34 33 84 32 . Initial 32 | . 19 13 12 32 . Average 21 | 16 24 16 31 32 . Maximum Alert Level . | . . . . . . Low Security (%) 100 | 100 100 100 100 100 . Level 1 . | . . . . . . Level 2 . | . . . . . . Level 3 . | . . . . . . Level 4 . | . . . . . . Level 5 . | . . . . . . High Security . | . . . . . . Max Security . | . . . . . . Squads Dispatched 1 | . 1 . . . . Investigation . | . . . . . . Extermination . | . . . . . . Reinforcement 1 | . 1 . . . . Assault . | . . . . . . Garrison . | . . . . . . Intercept . | . . . . . . Searches Triggered . | . . . . . . Construction Impeded . | . . . . . . Haulers Reinforced . | . . . . . . Active Scanning Responses . | . . . . . . Cargo Convoy Interrupts . | . . . . . . Stealth | -11 -10 -10 -9 -9 -9 --------- Run | Scr Mat Min Mat Min Exi Distress Signals . | . . . . . . Communications Jammed . | . . . . . . Distress Signals . | . . . . . . Times Spotted 13 | . 1 2 2 . 8 Peak Tracking Total 9 | . 2 2 1 . 9 Tactical Retreats . | . . . . . . Traps | -11 -10 -10 -9 -9 -9 ------- Run | Scr Mat Min Mat Min Exi Traps Triggered . | . . . . . . Indirectly . | . . . . . . Trap Hack Attempts . | . . . . . . Triggered . | . . . . . . Disarmed . | . . . . . . Reprogrammed . | . . . . . . Reused . | . . . . . . Traps Extracted . | . . . . . . Installed . | . . . . . . Triggered . | . . . . . . Machines | -11 -10 -10 -9 -9 -9 ---------- Run | Scr Mat Min Mat Min Exi Machines Disabled 1 | . . . . . 1 Max in Single Turn 1 | . . . . . 1 Machines Sabotaged . | . . . . . . Garrisons Compromised . | . . . . . . Overloaded Fab Kills . | . . . . . . Hacking | -11 -10 -10 -9 -9 -9 --------- Run | Scr Mat Min Mat Min Exi Machines Accessed 1 | . . . . . 1 Terminals . | . . . . . . Fabricators . | . . . . . . Repair Stations . | . . . . . . Recycling Units . | . . . . . . Scanalyzers . | . . . . . . Garrison Access . | . . . . . . Total Hacks 1 | . . . . . 1 Successful 1 | . . . . . 1 Failed . | . . . . . . Catastrophic . | . . . . . . Database Lockouts . | . . . . . . Manual 1 | . . . . . 1 Terminals . | . . . . . . Fabricators . | . . . . . . Repair Stations . | . . . . . . Recycling Units . | . . . . . . Scanalyzers . | . . . . . . Garrison Access . | . . . . . . Terminal Hacks 1 | . . . . . 1 EX-Prototype ID Bank 1 | . . . . . 1 Fabricator Hacks . | . . . . . . Repair Station Hacks . | . . . . . . Recycling Unit Hacks . | . . . . . . Scanalyzer . | . . . . . . Garrison Access Hacks . | . . . . . . Unauthorized Hacks . | . . . . . . Terminals . | . . . . . . Fabricators . | . . . . . . Repair Stations . | . . . . . . Recycling Units . | . . . . . . Scanalyzers . | . . . . . . Garrison Access . | . . . . . . Data Cores Recovered . | . . . . . . Used . | . . . . . . Hacking Detections . | . . . . . . Full Trace Events . | . . . . . . Feedback Events . | . . . . . . Feedback Blocked . | . . . . . . Robot Schematics Acquired . | . . . . . . Robots Built . | . . . . . . Authchips . | . . . . . . Time . | . . . . . . Total Robot Build Rating . | . . . . . . Part Schematics Acquired . | . . . . . . Parts Built . | . . . . . . Authchips . | . . . . . . Time . | . . . . . . Total Part Build Rating . | . . . . . . Parts Repaired . | . . . . . . Time . | . . . . . . Parts Recycled . | . . . . . . Recycled Matter . | . . . . . . Retrieved Matter . | . . . . . . Retrieved Components . | . . . . . . Parts Scanalyzed . | . . . . . . Part Schematics Acquired . | . . . . . . Parts Damaged . | . . . . . . Bothacking | -11 -10 -10 -9 -9 -9 ------------ Run | Scr Mat Min Mat Min Exi Used RIF Installer . | . . . . . . Robots Hacked . | . . . . . . Non-combat . | . . . . . . Combat . | . . . . . . Robot Hacks Applied . | . . . . . . Relay Couplers Released . | . . . . . . Fabnet Peak Effective % . | . . . . . . Robots Rewired . | . . . . . . Allies Hacked . | . . . . . . Hacks Repelled . | . . . . . . Allies | -11 -10 -10 -9 -9 -9 -------- Run | Scr Mat Min Mat Min Exi Total Allies . | . . . . . . Largest Group . | . . . . . . Highest-Rated Group . | . . . . . . Highest-Rated Ally . | . . . . . . Total Orders . | . . . . . . Ally Attacks . | . . . . . . Total Damage . | . . . . . . Kills . | . . . . . . Allies Corrupted . | . . . . . . Allies Melted . | . . . . . . Intel | -11 -10 -10 -9 -9 -9 ------- Run | Scr Mat Min Mat Min Exi Robot Analysis Total . | . . . . . . Derelict Logs Recovered . | . . . . . . Drone Launches . | . . . . . . Drone Recoveries . | . . . . . . Exploration | -11 -10 -10 -9 -9 -9 ------------- Run | Scr Mat Min Mat Min Exi Turns Passed 761 | 130 26 107 70 33 395 Spaces Moved 531 | 73 27 92 46 35 258 Core 3 | . . . . . 3 Treads . | . . . . . . Legs 8 | 8 . . . . . Wheels 520 | 65 27 92 46 35 255 Hover . | . . . . . . Flight . | . . . . . . Fastest Speed 95 | 100 100 100 95 95 95 Average Speed 97 | 102 100 100 95 95 96 Slowest Speed 200 | 120 100 100 95 95 200 Overloaded Moves . | . . . . . . Propulsion Burnouts . | . . . . . . Robots Hopped . | . . . . . . Cave-ins Triggered . | . . . . . . Exploration Rate (%) 17 | 3 10 17 8 14 50 Regions Visited 5 Branch Regions 3 Pre-discovered Areas . | . . . . . . Known Exits Taken . | . . . . . . Unknown Exits Taken 5 | 1 1 1 1 1 . Scrap Searched . | . . . . . . Spaces Dug . | . . . . . . Terrain Destroyed . | . . . . . . Melee . | . . . . . . Projectile . | . . . . . . AOE . | . . . . . . Terrain Rammed . | . . . . . . Walls Destroyed . | . . . . . . Machines Disabled . | . . . . . . Actions | -11 -10 -10 -9 -9 -9 --------- Run | Scr Mat Min Mat Min Exi Total 655 | 101 26 97 66 34 331 Wait 16 | . . . . . 16 Move 526 | 72 26 91 45 34 258 Hop . | . . . . . . Pick Up 13 | 7 . . 5 . 1 Fast Attach 4 | 1 . . 3 . . Attach 8 | . . . 2 . 6 Detach . | . . . . . . Swap 2 | 2 . . . . . Drop 12 | 5 . . 6 . 1 Fire 19 | 14 . 5 . . . Melee 54 | . . . 5 . 49 Ram 1 | . . 1 . . . Kick . | . . . . . . Crush . | . . . . . . Escape Stasis . | . . . . . . Rewire . | . . . . . . Trap . | . . . . . . Miscellaneous . | . . . . . . Route ------- -11/Scrapyard -10/Materials -10/Mines -9/Materials -9/Mines -9/Exiles History --------- Turn | Location | Event 1 | -11/Scrapyard | Discovered new exit (range 2) 131 | -11/Scrapyard | Entered Materials 139 | -10/Materials | Discovered new exit (range 16) 157 | -10/Materials | Entered Mines 243 | -10/Mines | Discovered new exit (range 7) 264 | -10/Mines | Entered Materials 264 | -9/Materials | Evolved 2 slots: Propulsion x2 302 | -9/Materials | Build established: Mutant 316 | -9/Materials | Discovered new exit (range 12) 334 | -9/Materials | Entered Mines 349 | -9/Mines | Met a Derelict bent on vengeance 363 | -9/Mines | Deemed a non-threat by the Exiles lab entrance 363 | -9/Mines | Discovered new exit (range 5) 367 | -9/Mines | Entered Exiles 389 | -9/Exiles | Met 8R-AWN 406 | -9/Exiles | Met EX-HEX 435 | -9/Exiles | Met EX-BIN 446 | -9/Exiles | Aligned with FarCom system 447 | -9/Exiles | Given EX-Vault access code 469 | -9/Exiles | Opened EX-Vault 483 | -9/Exiles | Found Chronowheel 503 | -9/Exiles | Warned to stay clear of 0b10 Research branches 550 | -9/Exiles | Met EX-DEC 605 | -9/Exiles | Attacked by the Exiles 703 | -9/Exiles | Core integrity fell below 50% 747 | -9/Exiles | Core integrity fell below 20% 762 | -9/Exiles | Destroyed by 8R-AWN with 8R-AWN's Boregun Last Messages --------------- 00738_ HV Slug penetrates Wall. 00741_ Penetrated by HV Slug. 00741_ Critical hit (Destroy). 00741_ Hvy. Flail destroyed. 00741_ Penetrated by HV Slug. 00746_ Destroyed Prototype Device. 00746_ 8R-AWN system corrupted by crushing effect. 00750_ Penetrated by HV Slug. 00753_ Destroyed Prototype Device. 00753_ 8R-AWN system corrupted by crushing effect. 00753_ Hvy. Flail follow-up attack on 8R-AWN. 00754_ Penetrated by HV Slug. 00754_ HV Slug penetrates Wall. 00759_ Penetrated by HV Slug. 00759_ HV Slug penetrates DEC's Terminal. 00759_ HV Slug penetrates DEC's Workstation. 00761_ 8R-AWN suffers critical hit (Smash). 00761_ Destroyed Prototype Ballistic Gun. 00761_ 8R-AWN system corrupted by crushing effect. 00762_ Penetrated by HV Slug. Map ----- +----------------------------------------------------+ | | | | | | | | | | | | | | | ???????????????????????????#########?????????????? | | ???????????????????????????# ! | #?????????????? | | ???????????????????????????# #?????????????? | | ???????????????????????????# [ #?????????????? | | ???????????????????????????# X#?????????????? | | ???????????????????????????## ##?????????????? | | ???????????????????????????#X #??????????????? | | ???????????????????????????## #??????????????? | | ????????????????????????????# #??????????????? | | ????????????????????????????# #???#?##???????? | | ????????????????????????????# #??"""""???????? | | ????????????????????????????# ## """#??????? | | ????????????????????????????# X""#??????? | | ????????????????????????????# ## """#??????? | | ????????????????????######### #??"""""???????? | | ????????????????????#""""""## #???###????????? | | ????????????????????#"""" ## #??????????????? | | ????????????????????#" X g #??????????????? | | ???????????????????##" @ #??????????????? | | ????????????????####; %% ## #??????????????? | | ???????????????## ; % ## #?#########????? | | ???????????????# ;;;; %##### #?#"""""""#????? | | ??????????????# ; ; #??# #?#"""""""#????? | | ????????????? ; " #??# #?#"""""""#????? | | ????????????### ; " #?## ###"" """"#????? | | ??????????????# ; "##?#" """"#????? | | ??????????????## ;;;;"" ??#" """#????? | | ???????????????# ###?#" """#????? | | ??????????????# # ## ???#" """#????? | | ????????????##;##;###??#???#" """#????? | | ????????????# """#???????#" """#????? | | ????????????""" """#???????## """"????? | | ??????????? #"" #????????# """#????? | | ??????????#?#"" #????????#" "X" """"????? | | ????????????#"" "#????????#" """ #????? | | ????????????# ""#????????#" """""""""#????? | | ????????????#"" ""#???????##" ###########????? | | ????????????### ###??????##"" #??????????????? | | ????????????### ###?######"" #??????????????? | | ? """#####X# #"###""""""" ##?????????????? | | ? """""" " "" ##???########## | | ? "" """ " #####""""""""" | | ? " " " """ """ | +----------------------------------------------------+ Best States ------------- Heat Dissipation 28 Energy Generation 14 Energy Capacity 280 Matter Stores 300 Matter Capacity 300 Sight Range 16 Terrain Scan Density 10 Armor Coverage 150 Evasion (%) 55 Item Schematics ----------------- None Robot Schematics ------------------ None Fabricated ------------ Nothing Alien Tech Used ----------------- None Achievements -------------- None Challenges ------------ None Game ------ Seed WardroneCouplerRefractor Manual? 0 Play Time 00:09:42 Cumulative 78.4 hours Start 2022.03.28 @ 04:32:21 End 2022.03.28 @ 04:40:42 Sessions 1 Manual Loads 0 Difficulty Rogue Special Mode None Game No. 118 Rogue 72 Adventurer 45 Explorer 1 Win Type - Total 0 Types 0/0/0/0/0/0/0/0/0 Lore% 25 Gallery% 45 Achievement% 32 Wizard Run 0 Options --------- ASCII 0 Keyboard 0 Movement Mouse Keybinds 0 Fullscreen 2 Font 18/X11Bold Map View 76x50 Tactical HUD 1 Map Filters NONE Filters LOW_CONTRAST(13,24,33)|BRIGHTNESS(90)|SATURATION(87) Steam 1 RUN: bb997fc1-f14a-4086-8b3d-43a2bfcd70b5